fUSD/lending_fUSD_20250530
["ID","MTS","AMOUNT","RATE_DAILY","PERIOD"]
[363102181,1748579440902,-174.99125486,0.0002,2]
[363102436,1748579442884,-27357.70441001,0.0002,2]
[363102443,1748579442940,-1773.0,0.0002,2]
[363102450,1748579442997,-14316.81453074,0.0002,2]
[363102452,1748579443007,-482.23930678,0.00020103,2]
[363102454,1748579443019,-156.58,0.00020108,2]
[363102456,1748579443029,-533.03,0.00020108,2]
[363102458,1748579443039,-1236.74,0.00020188,2]
[363102460,1748579443048,-192.84,0.00020203,2]
[363102462,1748579443058,-274.96,0.00020203,2]
[363102464,1748579443067,-5661.91609676,0.00020204,2]
[363102466,1748579443077,-688.10809716,0.0002022,2]
[363102468,1748579443088,-166.88,0.00020391,2]
[363102470,1748579443098,-16146.02,0.000204,2]
[363102472,1748579443108,-688.1080971,0.00020489,2]
[363102474,1748579443117,-1043.5,0.00020494,2]
[363102476,1748579443127,-5661.91609676,0.00020509,2]
[363102478,1748579443138,-1000.0,0.00020521,2]
[363102480,1748579443147,-398.48089186,0.00020521,2]
[363102482,1748579443156,-1000.0,0.00020521,2]
[363102485,1748579443167,-150.0,0.00020526,2]
[363102488,1748579443176,-858.24818195,0.00020552,2]
[363102490,1748579443186,-250.0,0.00020642,2]
[363102492,1748579443205,-163.7738703,0.00020722,2]
[363102494,1748579443215,-688.1080971,0.00020758,2]
[363102496,1748579443224,-167.66,0.00020804,2]
[363102499,1748579443234,-367.53,0.00020806,2]
[363102501,1748579443244,-5661.91609676,0.00020813,2]
[363102503,1748579443253,-384.07,0.00020823,2]
[363102505,1748579443263,-1680.0,0.00020831,2]
[363102507,1748579443274,-200.0,0.00020837,2]
[363102509,1748579443283,-858.24818195,0.00020844,2]
[363102511,1748579443293,-1500.0,0.00020858,2]
[363102513,1748579443303,-1000.0,0.0002087,2]
[363102515,1748579443312,-150.0,0.00020901,7]
[363102517,1748579443321,-200.0,0.00020922,2]
[363102519,1748579443330,-250.0,0.00020922,2]
[363102521,1748579443340,-200.0,0.00020922,2]
[363102523,1748579443350,-482.23930672,0.00020982,2]
[363102525,1748579443359,-160.09,0.00020986,2]
[363102527,1748579443369,-7500.0,0.00021,2]
[363102529,1748579443378,-688.1080971,0.00021026,2]
[363102531,1748579443388,-1500.0,0.00021068,2]
[363102533,1748579443397,-1500.0,0.00021068,2]
[363102535,1748579443406,-500.0,0.00021095,2]
[363102537,1748579443415,-5661.91609676,0.00021117,2]
[363102539,1748579443424,-858.24818195,0.00021125,2]
[363102541,1748579443434,-1612.72,0.00021141,2]
[363102543,1748579443443,-806.64,0.00021141,2]
[363102545,1748579443453,-806.36,0.00021141,2]
[363102547,1748579443462,-166.7,0.0002116,2]
[363102549,1748579443471,-207.4,0.00021209,2]
[363102551,1748579443480,-155.85,0.00021232,2]
[363102553,1748579443490,-806.64,0.00021241,2]
[363102555,1748579443500,-155.85,0.00021247,2]
[363102557,1748579443509,-155.85,0.00021262,2]
[363102559,1748579443523,-155.85,0.00021278,2]
[363102561,1748579443533,-155.85,0.00021293,2]
[363102563,1748579443543,-688.1080971,0.00021295,2]
[363102565,1748579443552,-155.85,0.00021308,2]
[363102567,1748579443561,-1000.0,0.00021317,2]
[363102569,1748579443570,-1000.0,0.00021317,2]
[363102571,1748579443579,-1000.0,0.00021317,2]
[363102573,1748579443588,-1000.0,0.00021317,2]
[363102575,1748579443598,-1000.0,0.00021317,2]
[363102577,1748579443607,-1000.0,0.00021317,2]
[363102579,1748579443616,-1000.0,0.00021317,2]
[363102581,1748579443626,-1000.0,0.00021317,2]
[363102583,1748579443635,-1000.0,0.00021317,2]
[363102585,1748579443644,-1000.0,0.00021317,2]
[363102587,1748579443653,-1000.0,0.00021317,7]
[363102589,1748579443663,-1000.0,0.00021317,7]
[363102591,1748579443672,-1000.0,0.00021317,7]
[363102593,1748579443681,-1000.0,0.00021317,7]
[363102595,1748579443691,-1000.0,0.00021317,7]
[363102597,1748579443700,-1000.0,0.00021317,7]
[363102599,1748579443710,-1000.0,0.00021317,7]
[363102601,1748579443719,-1000.0,0.00021317,7]
[363102603,1748579443728,-1000.0,0.00021317,7]
[363102604,1748579443737,-1000.0,0.00021317,7]
[363102605,1748579443746,-155.85,0.00021323,2]
[363102606,1748579443755,-155.85,0.00021338,2]
[363102607,1748579443764,-152.62,0.0002137,2]
[363102608,1748579443773,-150.57,0.0002137,2]
[363102609,1748579443782,-300.8,0.0002137,2]
[363102610,1748579443792,-1160.87,0.0002137,2]
[363102611,1748579443800,-338.23,0.0002137,2]
[363102612,1748579443810,-5661.91609676,0.00021422,2]
[363102613,1748579443818,-858.24818195,0.00021427,2]
[363102614,1748579443827,-445.04,0.00021478,2]
[363102615,1748579443836,-163.7738703,0.00021544,2]
[363102617,1748579443845,-688.1080971,0.00021564,2]
[363102619,1748579443854,-2000.0,0.00021616,2]
[363102621,1748579443863,-7400.65283429,0.000217,2]
[363102623,1748579443872,-5661.91609676,0.00021726,2]
[363102625,1748579443880,-1128.670142,0.00021747,3]
[363102627,1748579443889,-174.9952,0.00021816,2]
[363102629,1748579443899,-858.24818197,0.00021816,2]
[363102631,1748579443910,-3499.7625,0.00021817,2]
[363102633,1748579443919,-1000.0,0.00021817,2]
[363102635,1748579443928,-500.0,0.00021817,2]
[363102637,1748579443938,-35977.5457,0.00021817,2]
[363102639,1748579443947,-1201.728,0.00021817,2]
[363102641,1748579443956,-688.1080971,0.00021833,2]
[363102643,1748579443966,-482.23930672,0.00021862,2]
[363102645,1748579443975,-151.0,0.00021887,2]
[363102647,1748579443984,-151.0,0.00021887,2]
[363102649,1748579443994,-1115.157653,0.00021887,2]
[363102651,1748579444003,-154.81765476,0.00021887,2]
[363102653,1748579444013,-668.65185757,0.00021887,2]
[363102655,1748579444024,-5238.35,0.000219,2]
[363102657,1748579444033,-300.62,0.000219,2]
[363102659,1748579444043,-150.51,0.000219,2]
[363102661,1748579444052,-150.0,0.000219,2]
[363102663,1748579444061,-1160.87,0.000219,2]
[363102665,1748579444071,-300.59,0.000219,2]
[363102667,1748579444080,-150.0,0.000219,2]
[363102669,1748579444092,-150.55,0.000219,2]
[363102671,1748579444101,-244.39908474,0.00021907,2]
[363102673,1748579444110,-2979.63078921,0.00021914,2]
[363102675,1748579444119,-420.0,0.00021917,2]
[363102677,1748579444128,-420.0,0.00021917,2]
[363102679,1748579444138,-420.0,0.00021917,2]
[363102681,1748579444148,-530.41,0.00021917,2]
[363102683,1748579444158,-420.0,0.00021917,2]
[363102685,1748579444167,-420.0,0.00021917,2]
[363102687,1748579444178,-1313.2,0.00021917,2]
[363102689,1748579444187,-420.0,0.00021917,2]
[363102691,1748579444196,-420.0,0.00021917,2]
[363102693,1748579444206,-420.0,0.00021917,2]
[363102695,1748579444215,-420.0,0.00021917,2]
[363102697,1748579444224,-492.7,0.00021917,2]
[363102699,1748579444234,-420.0,0.00021917,2]
[363102701,1748579444243,-420.0,0.00021917,2]
[363102703,1748579444252,-420.0,0.00021917,2]
[363102705,1748579444262,-372.99160441,0.00021917,2]
[363102707,1748579444273,-420.0,0.00021917,2]
[363102709,1748579444282,-420.0,0.00021917,2]
[363102711,1748579444291,-547.84,0.00021917,2]
[363102713,1748579444301,-516.9,0.00021917,2]
[363102715,1748579444310,-420.0,0.00021917,2]
[363102717,1748579444319,-420.0,0.00021917,2]
[363102719,1748579444329,-420.0,0.00021917,2]
[363102721,1748579444338,-420.0,0.00021917,2]
[363102723,1748579444348,-420.0,0.00021917,2]
[363102725,1748579444359,-421.21367918,0.00021917,2]
[363102727,1748579444367,-420.0,0.00021917,2]
[363102729,1748579444377,-420.0,0.00021917,2]
[363102731,1748579444387,-420.0,0.00021917,2]
[363102733,1748579444396,-420.0,0.00021917,2]
[363102735,1748579444406,-569.86,0.00021917,2]
[363102737,1748579444415,-519.82,0.00021917,2]
[363102739,1748579444424,-300.0,0.00021917,2]
[363102740,1748579444433,-591.8,0.00021917,2]
[363102742,1748579444442,-945.13,0.00021917,2]
[363102744,1748579444451,-420.0,0.00021917,2]
[363102746,1748579444460,-311.13,0.00021917,2]
[363102748,1748579444469,-420.0,0.00021917,2]
[363102750,1748579444478,-420.0,0.00021917,2]
[363102752,1748579444487,-414.63725396,0.00021917,2]
[363102754,1748579444496,-453.38,0.00021917,2]
[363102755,1748579444505,-420.0,0.00021917,2]
[363102757,1748579444514,-420.0,0.00021917,2]
[363102759,1748579444524,-420.0,0.00021917,2]
[363102761,1748579444533,-420.0,0.00021917,2]
[363102763,1748579444542,-420.0,0.00021917,2]
[363102765,1748579444551,-420.0,0.00021917,2]
[363102767,1748579444561,-659.67,0.00021917,2]
[363102769,1748579444570,-420.0,0.00021917,2]
[363102771,1748579444579,-420.0,0.00021917,2]
[363102773,1748579444589,-420.0,0.00021917,2]
[363102775,1748579444598,-420.0,0.00021917,2]
[363102777,1748579444607,-420.0,0.00021917,2]
[363102779,1748579444616,-420.0,0.00021917,2]
[363102781,1748579444625,-420.0,0.00021917,2]
[363102782,1748579444635,-304.97365057,0.00021917,2]
[363102784,1748579444647,-420.0,0.00021917,2]
[363102787,1748579444658,-420.0,0.00021917,2]
[363102788,1748579444667,-436.02588865,0.00021917,2]
[363102790,1748579444676,-420.0,0.00021917,2]
[363102792,1748579444686,-420.0,0.00021917,2]
[363102794,1748579444695,-420.0,0.00021917,2]
[363102796,1748579444704,-420.0,0.00021917,2]
[363102798,1748579444714,-420.0,0.00021917,2]
[363102800,1748579444722,-426.76,0.00021917,2]
[363102802,1748579444731,-420.0,0.00021917,2]
[363102804,1748579444740,-420.0,0.00021917,2]
[363102806,1748579444749,-420.0,0.00021917,2]
[363102808,1748579444759,-507.98,0.00021917,2]
[363102810,1748579444768,-420.0,0.00021917,2]
[363102812,1748579444778,-420.0,0.00021917,2]
[363102814,1748579444787,-420.0,0.00021917,2]
[363102816,1748579444797,-420.0,0.00021917,2]
[363102818,1748579444806,-420.0,0.00021917,2]
[363102820,1748579444815,-673.5,0.00021917,2]
[363102822,1748579444825,-420.0,0.00021917,2]
[363102824,1748579444834,-420.0,0.00021917,2]
[363102826,1748579444843,-420.0,0.00021917,2]
[363102828,1748579444853,-420.0,0.00021917,2]
[363102830,1748579444862,-420.0,0.00021917,2]
[363102832,1748579444871,-542.6,0.00021917,2]
[363102834,1748579444881,-420.0,0.00021917,2]
[363102836,1748579444890,-420.0,0.00021917,2]
[363102838,1748579444900,-420.0,0.00021917,2]
[363102840,1748579444909,-420.0,0.00021917,2]
[363102842,1748579444918,-544.5,0.00021917,2]
[363102844,1748579444928,-493.33,0.00021917,2]
[363102846,1748579444937,-176.05402412,0.00021917,2]
[363102848,1748579444946,-420.0,0.00021917,2]
[363102850,1748579444955,-420.0,0.00021917,2]
[363102852,1748579444964,-420.0,0.00021917,2]
[363102854,1748579444973,-426.61,0.00021917,2]
[363102856,1748579444982,-420.0,0.00021917,2]
[363102858,1748579444991,-420.0,0.00021917,2]
[363102860,1748579445001,-420.0,0.00021917,2]
[363102862,1748579445010,-220.23481666,0.00021917,2]
[363102863,1748579445019,-420.0,0.00021917,2]
[363102866,1748579445028,-420.0,0.00021917,2]
[363102867,1748579445038,-420.0,0.00021917,2]
[363102869,1748579445047,-420.0,0.00021917,2]
[363102872,1748579445056,-420.0,0.00021917,2]
[363102874,1748579445068,-500.44,0.00021917,2]
[363102876,1748579445078,-420.0,0.00021917,2]
[363102877,1748579445090,-621.74,0.00021917,2]
[363102879,1748579445099,-420.0,0.00021917,2]
[363102881,1748579445108,-420.0,0.00021917,2]
[363102883,1748579445118,-486.42753267,0.00021917,2]
[363102885,1748579445127,-420.0,0.00021917,2]
[363102887,1748579445136,-420.0,0.00021917,2]
[363102889,1748579445145,-420.0,0.00021917,2]
[363102891,1748579445154,-747.36,0.00021917,2]
[363102893,1748579445166,-420.0,0.00021917,2]
[363102895,1748579445175,-449.85,0.00021917,2]
[363102897,1748579445185,-420.0,0.00021917,2]
[363102899,1748579445194,-420.0,0.00021917,2]
[363102901,1748579445205,-420.0,0.00021917,2]
[363102903,1748579445213,-420.0,0.00021917,2]
[363102905,1748579445222,-420.0,0.00021917,2]
[363102907,1748579445231,-420.0,0.00021917,2]
[363102909,1748579445241,-433.75841864,0.00021917,2]
[363102911,1748579445251,-420.0,0.00021917,2]
[363102913,1748579445260,-420.0,0.00021917,2]
[363102915,1748579445271,-271.49701578,0.00021917,2]
[363102917,1748579445280,-420.0,0.00021917,2]
[363102919,1748579445290,-420.0,0.00021917,2]
[363102921,1748579445299,-438.28621815,0.00021917,2]
[363102923,1748579445308,-420.0,0.00021917,2]
[363102925,1748579445318,-429.19475543,0.00021917,2]
[363102927,1748579445327,-1239.73,0.00021917,2]
[363102929,1748579445337,-858.53,0.00021917,2]
[363102931,1748579445346,-426.45958641,0.00021917,2]
[363102933,1748579445356,-420.0,0.00021917,2]
[363102935,1748579445365,-420.0,0.00021917,2]
[363102937,1748579445374,-420.0,0.00021917,2]
[363102939,1748579445383,-420.0,0.00021917,2]
[363102962,1748579445573,-420.0,0.00021917,2]
[363102965,1748579445617,-365.67340357,0.00021917,2]
[363102967,1748579445627,-535.21,0.00021917,2]
[363102969,1748579445636,-421.48,0.00021917,2]
[363102971,1748579445646,-420.0,0.00021917,2]
[363102973,1748579445657,-420.0,0.00021917,2]
[363102975,1748579445667,-428.79826855,0.00021917,2]
[363102977,1748579445676,-420.0,0.00021917,2]
[363102979,1748579445685,-420.0,0.00021917,2]
[363102981,1748579445694,-525.99,0.00021917,2]
[363102983,1748579445703,-420.0,0.00021917,2]
[363102985,1748579445713,-420.0,0.00021917,2]
[363102987,1748579445722,-420.0,0.00021917,2]
[363102989,1748579445740,-537.71504359,0.00021917,2]
[363102991,1748579445754,-483.35,0.00021917,2]
[363102993,1748579445763,-420.0,0.00021917,2]
[363102995,1748579445774,-425.35899265,0.00021917,2]
[363102997,1748579445783,-420.0,0.00021917,2]
[363102999,1748579445793,-424.2585971,0.00021917,2]
[363103001,1748579445803,-1481.46,0.00021917,2]
[363103003,1748579445813,-425.36307424,0.00021917,2]
[363103005,1748579445823,-555.42,0.00021917,2]
[363103007,1748579445832,-546.13,0.00021917,2]
[363103009,1748579445842,-420.0,0.00021917,2]
[363103011,1748579445852,-420.0,0.00021917,2]
[363103013,1748579445861,-1038.53,0.00021917,2]
[363103015,1748579445870,-503.5,0.00021917,2]
[363103017,1748579445879,-420.0,0.00021917,2]
[363103019,1748579445888,-420.0,0.00021917,2]
[363103021,1748579445898,-1443.99,0.00021917,2]
[363103023,1748579445908,-420.0,0.00021917,2]
[363103025,1748579445917,-420.0,0.00021917,2]
[363103027,1748579445927,-422.66,0.00021917,2]
[363103030,1748579445937,-669.97,0.00021917,2]
[363103031,1748579445946,-950.28,0.00021917,2]
[363103032,1748579445956,-605.31,0.00021917,2]
[363103033,1748579445966,-420.0,0.00021917,2]
[363103034,1748579445975,-460.44,0.00021917,2]
[363103035,1748579445985,-617.23,0.00021917,2]
[363103036,1748579445994,-1245.73,0.00021917,2]
[363103037,1748579446003,-426.83256011,0.00021917,2]
[363103038,1748579446013,-442.55282783,0.00021917,2]
[363103039,1748579446024,-678.33,0.00021917,2]
[363103040,1748579446034,-420.0,0.00021917,2]
[363103041,1748579446044,-431.97950367,0.00021917,2]
[363103042,1748579446053,-1026.3,0.00021917,2]
[363103043,1748579446063,-420.0,0.00021917,2]
[363103044,1748579446073,-420.0,0.00021917,2]
[363103045,1748579446084,-677.03,0.00021917,2]
[363103046,1748579446097,-1007.6,0.00021917,2]
[363103047,1748579446106,-428.62260274,0.00021917,2]
[363103048,1748579446116,-221.90502367,0.00021917,2]
[363103049,1748579446126,-420.0,0.00021917,2]
[363103050,1748579446136,-1180.67,0.00021917,2]
[363103051,1748579446146,-1228.07,0.00021917,2]
[363103052,1748579446156,-420.0,0.00021917,2]
[363103053,1748579446166,-1844.99,0.00021917,2]
[363103054,1748579446177,-420.0,0.00021917,2]
[363103055,1748579446187,-690.67,0.00021917,2]
[363103056,1748579446197,-530.65412982,0.00021917,2]
[363103057,1748579446207,-453.37,0.00021917,2]
[363103058,1748579446217,-420.0,0.00021917,2]
[363103059,1748579446227,-420.0,0.00021917,2]
[363103060,1748579446237,-388.97871371,0.00021917,2]
[363103061,1748579446247,-420.0,0.00021917,2]
[363103062,1748579446257,-844.42,0.00021917,2]
[363103063,1748579446270,-430.21,0.00021917,2]
[363103064,1748579446282,-420.0,0.00021917,2]
[363103065,1748579446292,-420.0,0.00021917,2]
[363103066,1748579446302,-769.79,0.00021917,2]
[363103067,1748579446312,-1233.12,0.00021917,2]
[363103068,1748579446323,-479.68,0.00021917,2]
[363103069,1748579446333,-420.0,0.00021917,2]
[363103070,1748579446343,-667.35,0.00021917,2]
[363103071,1748579446353,-420.0,0.00021917,2]
[363103072,1748579446363,-1041.19,0.00021917,2]
[363103073,1748579446372,-1218.36,0.00021917,2]
[363103074,1748579446383,-607.39,0.00021917,2]
[363103075,1748579446394,-1631.11,0.00021917,2]
[363103076,1748579446404,-151.0,0.00021917,2]
[363103077,1748579446414,-420.0,0.00021917,2]
[363103078,1748579446423,-420.0,0.00021917,2]
[363103079,1748579446433,-431.76,0.00021917,2]
[363103080,1748579446444,-676.5,0.00021917,2]
[363103081,1748579446454,-871.9,0.00021917,2]
[363103082,1748579446464,-151.0,0.00021917,2]
[363103083,1748579446474,-420.0,0.00021917,2]
[363103084,1748579446484,-151.0,0.00021917,2]
[363103085,1748579446494,-1209.81,0.00021917,2]
[363103086,1748579446504,-420.0,0.00021917,2]
[363103087,1748579446515,-605.09,0.00021917,2]
[363103088,1748579446531,-1388.41,0.00021917,2]
[363103089,1748579446540,-686.7,0.00021917,2]
[363103090,1748579446550,-1294.41,0.00021917,2]
[363103091,1748579446560,-697.59,0.00021917,2]
[363103092,1748579446570,-420.0,0.00021917,2]
[363103093,1748579446580,-840.59,0.00021917,2]
[363103094,1748579446589,-151.0,0.00021917,2]
[363103095,1748579446599,-420.0,0.00021917,2]
[363103096,1748579446608,-522.65,0.00021917,2]
[363103097,1748579446618,-506.0,0.00021917,2]
[363103098,1748579446627,-420.0,0.00021917,2]
[363103099,1748579446637,-851.3,0.00021917,2]
[363103100,1748579446646,-685.49,0.00021917,2]
[363103102,1748579446655,-420.0,0.00021917,2]
[363103104,1748579446665,-800.52,0.00021917,2]
[363103106,1748579446674,-551.61,0.00021917,2]
[363103108,1748579446683,-720.82,0.00021917,2]
[363103110,1748579446693,-420.0,0.00021917,2]
[363103112,1748579446704,-628.33,0.00021917,2]
[363103114,1748579446714,-420.0,0.00021917,2]
[363103116,1748579446723,-1249.91,0.00021917,2]
[363103118,1748579446733,-1318.26,0.00021917,2]
[363103120,1748579446742,-490.53,0.00021917,2]
[363103122,1748579446751,-879.09,0.00021917,2]
[363103124,1748579446761,-511.82,0.00021917,2]
[363103126,1748579446774,-745.08,0.00021917,2]
[363103128,1748579446784,-826.24,0.00021917,2]
[363103130,1748579446793,-982.21,0.00021917,2]
[363103133,1748579446803,-420.0,0.00021917,2]
[363103134,1748579446813,-500.0,0.00021917,2]
[363103137,1748579446822,-500.0,0.00021917,2]
[363103138,1748579446832,-178.44810261,0.00021917,2]
[363103141,1748579446841,-612.65,0.00021917,2]
[363103143,1748579446851,-275.77848789,0.00021917,2]
[363103145,1748579446861,-420.0,0.00021917,2]
[363103147,1748579446871,-1151.48,0.00021917,2]
[363103149,1748579446881,-421.62,0.00021917,2]
[363103151,1748579446890,-420.0,0.00021917,2]
[363103153,1748579446900,-420.0,0.00021917,2]
[363103155,1748579446910,-511.59,0.00021917,2]
[363103157,1748579446919,-1485.96,0.00021917,2]
[363103159,1748579446928,-488.8,0.00021917,2]
[363103161,1748579446938,-420.0,0.00021917,2]
[363103163,1748579446948,-420.0,0.00021917,2]
[363103165,1748579446958,-1425.99,0.00021917,2]
[363103167,1748579446968,-526.85,0.00021917,2]
[363103169,1748579446978,-1162.88,0.00021917,2]
[363103171,1748579446989,-420.0,0.00021917,2]
[363103173,1748579446999,-522.0,0.00021917,2]
[363103175,1748579447009,-420.0,0.00021917,2]
[363103177,1748579447020,-558.42,0.00021917,2]
[363103179,1748579447030,-1364.15,0.00021917,2]
[363103181,1748579447040,-431.89,0.00021917,2]
[363103183,1748579447050,-739.62,0.00021917,2]
[363103185,1748579447060,-420.0,0.00021917,2]
[363103187,1748579447070,-676.49,0.00021917,2]
[363103189,1748579447080,-801.64,0.00021917,2]
[363103191,1748579447093,-938.06,0.00021917,2]
[363103194,1748579447103,-1755.9,0.00021917,2]
[363103196,1748579447113,-296.60577493,0.00021917,2]
[363103197,1748579447122,-480.07,0.00021917,2]
[363103200,1748579447133,-1463.95,0.00021917,2]
[363103202,1748579447143,-420.0,0.00021917,2]
[363103204,1748579447152,-420.0,0.00021917,2]
[363103206,1748579447163,-1219.21,0.00021917,2]
[363103208,1748579447173,-420.0,0.00021917,2]
[363103210,1748579447182,-513.27,0.00021917,2]
[363103212,1748579447192,-1116.71,0.00021917,2]
[363103214,1748579447202,-527.45,0.00021917,2]
[363103216,1748579447211,-420.0,0.00021917,2]
[363103218,1748579447221,-483.87,0.00021917,2]
[363103220,1748579447231,-420.0,0.00021917,2]
[363103222,1748579447240,-1190.06,0.00021917,2]
[363103224,1748579447249,-495.08,0.00021917,2]
[363103226,1748579447259,-420.0,0.00021917,2]
[363103228,1748579447272,-420.0,0.00021917,2]
[363103230,1748579447281,-420.0,0.00021917,2]
[363103232,1748579447291,-1555.0,0.00021917,2]
[363103234,1748579447301,-2582.23,0.00021917,2]
[363103236,1748579447311,-420.0,0.00021917,2]
[363103238,1748579447321,-597.73,0.00021917,2]
[363103240,1748579447331,-420.0,0.00021917,2]
[363103242,1748579447340,-561.2,0.00021917,2]
[363103244,1748579447349,-635.12,0.00021917,2]
[363103246,1748579447358,-445.09,0.00021917,2]
[363103248,1748579447368,-1042.87,0.00021917,2]
[363103250,1748579447377,-420.0,0.00021917,2]
[363103252,1748579447387,-442.01,0.00021917,2]
[363103254,1748579447397,-615.74,0.00021917,2]
[363103256,1748579447406,-420.0,0.00021917,2]
[363103258,1748579447416,-420.0,0.00021917,2]
[363103260,1748579447426,-1269.35,0.00021917,2]
[363103262,1748579447436,-1327.08,0.00021917,2]
[363103264,1748579447445,-723.05,0.00021917,2]
[363103266,1748579447455,-420.0,0.00021917,2]
[363103267,1748579447464,-578.72,0.00021917,2]
[363103268,1748579447474,-1037.51,0.00021917,2]
[363103269,1748579447483,-420.0,0.00021917,2]
[363103270,1748579447493,-420.0,0.00021917,2]
[363103271,1748579447502,-1652.06,0.00021917,2]
[363103272,1748579447512,-420.0,0.00021917,2]
[363103273,1748579447524,-749.66,0.00021917,2]
[363103274,1748579447534,-2089.02,0.00021917,2]
[363103275,1748579447544,-1370.76,0.00021917,2]
[363103276,1748579447553,-771.44,0.00021917,2]
[363103277,1748579447564,-1551.22,0.00021917,2]
[363103278,1748579447573,-420.0,0.00021917,2]
[363103279,1748579447583,-843.93,0.00021917,2]
[363103280,1748579447593,-1136.63,0.00021917,2]
[363103281,1748579447603,-420.0,0.00021917,2]
[363103282,1748579447613,-420.0,0.00021917,2]
[363103283,1748579447623,-420.0,0.00021917,2]
[363103284,1748579447632,-420.0,0.00021917,2]
[363103285,1748579447642,-431.44,0.00021917,2]
[363103286,1748579447652,-578.97,0.00021917,2]
[363103287,1748579447661,-420.0,0.00021917,2]
[363103288,1748579447671,-1095.43,0.00021917,2]
[363103289,1748579447680,-420.0,0.00021917,2]
[363103290,1748579447690,-420.0,0.00021917,2]
[363103291,1748579447699,-420.0,0.00021917,2]
[363103292,1748579447709,-456.22,0.00021917,2]
[363103293,1748579447718,-420.0,0.00021917,2]
[363103294,1748579447727,-1235.68,0.00021917,2]
[363103295,1748579447737,-959.1,0.00021917,2]
[363103296,1748579447746,-589.11,0.00021917,2]
[363103298,1748579447757,-151.0,0.00021917,2]
[363103299,1748579447770,-420.0,0.00021917,2]
[363103300,1748579447779,-564.59,0.00021917,2]
[363103301,1748579447789,-444.57,0.00021917,2]
[363103302,1748579447800,-420.0,0.00021917,2]
[363103303,1748579447813,-420.0,0.00021917,2]
[363103304,1748579447822,-420.0,0.00021917,2]
[363103305,1748579447832,-504.33,0.00021917,2]
[363103306,1748579447841,-556.65,0.00021917,2]
[363103307,1748579447851,-173.82667914,0.00021917,2]
[363103308,1748579449303,-600.63332086,0.00021917,2]
[363103309,1748579449313,-420.0,0.00021917,2]
[363103310,1748579449323,-420.0,0.00021917,2]
[363103311,1748579449334,-420.0,0.00021917,2]
[363103312,1748579449343,-420.0,0.00021917,2]
[363103313,1748579449354,-420.0,0.00021917,2]
[363103314,1748579449363,-420.0,0.00021917,2]
[363103315,1748579449373,-539.76,0.00021917,2]
[363103316,1748579449382,-224.615183,0.00021917,2]
[363103317,1748579449391,-528.22,0.00021917,2]
[363103318,1748579449400,-498.27,0.00021917,2]
[363103319,1748579449409,-420.0,0.00021917,2]
[363103320,1748579449418,-224.615183,0.00021917,2]
[363103321,1748579449427,-772.79,0.00021917,2]
[363103322,1748579449437,-589.68,0.00021917,2]
[363103323,1748579449447,-420.0,0.00021917,2]
[363103324,1748579449456,-554.9,0.00021917,2]
[363103325,1748579449465,-162.283034,0.00021917,2]
[363103326,1748579449475,-621.5,0.00021917,2]